[Event "*** Titled Tuesday Blitz"]
[Site "Chess.com"]
[Date "2020.12.29"]
[Round "3"]
[White "Triumphmate"]
[Black "FloMaster111"]
[Result "0-1"]
[WhiteElo "2396"]
[BlackElo "2591"]
[TimeControl "180+1"]
[EndTime "10:28:03 PST"]
[Termination "FloMaster111 won by resignation"]

1. e4 {[%clk 0:02:01]} 1... c5 {[%clk 0:02:58.5]} 2. Nf3 {[%clk 0:02:00.6]} 2...
Nc6 {[%clk 0:02:56.4]} 3. d4 {[%clk 0:02:01.1]} 3... cxd4 {[%clk 0:02:57.3]} 4.
Nxd4 {[%clk 0:02:00.9]} 4... Nf6 {[%clk 0:02:58]} 5. Nc3 {[%clk 0:02:00.7]} 5...
e5 {[%clk 0:02:57.8]} 6. Ndb5 {[%clk 0:02:01.3]} 6... d6 {[%clk 0:02:57.6]} 7.
Bg5 {[%clk 0:02:01.9]} 7... a6 {[%clk 0:02:57.4]} 8. Na3 {[%clk 0:02:02.5]} 8...
b5 {[%clk 0:02:55.6]} 9. Bxf6 {[%clk 0:02:02.7]} 9... gxf6 {[%clk 0:02:55.4]}
10. Nd5 {[%clk 0:02:03.6]} 10... f5 {[%clk 0:02:50.1]} 11. c3 {[%clk 0:02:04.2]}
11... Bh6 {[%clk 0:02:42.4]} 12. Qh5 {[%clk 0:02:00.1]} 12... Bg5 {[%clk
0:02:31.1]} 13. Bd3 {[%clk 0:01:44.7]} 13... f4 {[%clk 0:02:26.4]} 14. g3 {[%clk
0:01:34.8]} 14... Be6 {[%clk 0:02:07.2]} 15. gxf4 {[%clk 0:01:06.6]} 15... Bxf4
{[%clk 0:02:03.8]} 16. Nxf4 {[%clk 0:00:53.8]} 16... exf4 {[%clk 0:02:03.7]} 17.
O-O-O {[%clk 0:00:29.1]} 17... Ne5 {[%clk 0:01:55.7]} 18. Rhg1 {[%clk
0:00:23.1]} 18... Qb6 {[%clk 0:01:44.8]} 19. Nc2 {[%clk 0:00:22.4]} 19... Qxf2
{[%clk 0:01:40.2]} 20. Rgf1 {[%clk 0:00:22.8]} 20... Nxd3+ {[%clk 0:01:40.2]}
21. Kb1 {[%clk 0:00:22.7]} 21... Qg2 {[%clk 0:01:30]} 22. Rg1 {[%clk 0:00:18.8]}
22... Qxe4 {[%clk 0:01:30.1]} 23. Rd2 {[%clk 0:00:13.4]} 23... O-O-O {[%clk
0:01:27]} 24. Re2 {[%clk 0:00:12.5]} 24... Qc6 {[%clk 0:01:20.1]} 25. Nd4 {[%clk
0:00:12.7]} 25... Qd7 {[%clk 0:01:17]} 26. Qf3 {[%clk 0:00:11.6]} 26... Nc5
{[%clk 0:01:05.6]} 27. Qa8+ {[%clk 0:00:11]} 27... Kc7 {[%clk 0:01:06.3]} 28.
Qa7+ {[%clk 0:00:10.3]} 28... Nb7 {[%clk 0:01:06.9]} 29. Nxe6+ {[%clk
0:00:10.8]} 29... fxe6 {[%clk 0:01:05.8]} 30. Reg2 {[%clk 0:00:07.5]} 30... Ra8
{[%clk 0:01:02.9]} 31. Qd4 {[%clk 0:00:06.4]} 31... e5 {[%clk 0:00:55.3]} 32.
Qd5 {[%clk 0:00:06.5]} 32... Rhe8 {[%clk 0:00:52.8]} 33. Rg7 {[%clk 0:00:04.4]}
33... Re7 {[%clk 0:00:53.3]} 34. R7g5 {[%clk 0:00:03.4]} 34... Rf8 {[%clk
0:00:48.7]} 35. a4 {[%clk 0:00:03.6]} 35... bxa4 {[%clk 0:00:47.4]} 36. Qc4+
{[%clk 0:00:03.1]} 36... Nc5 {[%clk 0:00:46.5]} 37. Qd3 {[%clk 0:00:03.8]} 0-1

[Event "*** Titled Tuesday Blitz"]
[Site "Chess.com"]
[Date "2020.12.29"]
[Round "3"]
[White "SHIVACalypso"]
[Black "KubaGepard"]
[Result "1-0"]
[WhiteElo "2470"]
[BlackElo "2289"]
[TimeControl "180+1"]
[EndTime "10:28:07 PST"]
[Termination "SHIVACalypso won by resignation"]

1. Nf3 {[%clk 0:03:00.9]} 1... d5 {[%clk 0:02:56]} 2. c4 {[%clk 0:03:01.4]} 2...
dxc4 {[%clk 0:02:56.2]} 3. e3 {[%clk 0:03:00.4]} 3... Nf6 {[%clk 0:02:55.3]} 4.
Bxc4 {[%clk 0:03:00.5]} 4... e6 {[%clk 0:02:55.7]} 5. d4 {[%clk 0:02:58.1]} 5...
c5 {[%clk 0:02:55.2]} 6. O-O {[%clk 0:02:55.7]} 6... Nc6 {[%clk 0:02:55.4]} 7.
Bb5 {[%clk 0:02:47.1]} 7... Bd7 {[%clk 0:02:53.9]} 8. Nc3 {[%clk 0:02:37]} 8...
cxd4 {[%clk 0:02:52.7]} 9. Nxd4 {[%clk 0:02:35.7]} 9... Nxd4 {[%clk 0:02:51.8]}
10. Qxd4 {[%clk 0:02:35.3]} 10... Bxb5 {[%clk 0:02:50.7]} 11. Nxb5 {[%clk
0:02:36.2]} 11... a6 {[%clk 0:02:42.2]} 12. Nc3 {[%clk 0:02:25.2]} 12... Qxd4
{[%clk 0:02:40.6]} 13. exd4 {[%clk 0:02:26.1]} 13... Bb4 {[%clk 0:02:40.3]} 14.
Be3 {[%clk 0:02:25.8]} 14... Ke7 {[%clk 0:02:35.3]} 15. a3 {[%clk 0:02:22.5]}
15... Bxc3 {[%clk 0:02:34.3]} 16. bxc3 {[%clk 0:02:23.4]} 16... Rac8 {[%clk
0:02:33.5]} 17. Rfc1 {[%clk 0:02:23.2]} 17... Rc4 {[%clk 0:02:32.8]} 18. Rab1
{[%clk 0:02:22.9]} 18... b5 {[%clk 0:02:32]} 19. Rb4 {[%clk 0:02:23]} 19... Rhc8
{[%clk 0:02:30.7]} 20. Rxc4 {[%clk 0:02:19.6]} 20... Rxc4 {[%clk 0:02:29.2]} 21.
f3 {[%clk 0:01:57.9]} 21... Nd5 {[%clk 0:02:27.7]} 22. Bd2 {[%clk 0:01:57.9]}
22... Ra4 {[%clk 0:02:23.3]} 23. Ra1 {[%clk 0:01:49.6]} 23... Nb6 {[%clk
0:02:22.1]} 24. Kf1 {[%clk 0:01:49.2]} 24... Nc4 {[%clk 0:02:20.6]} 25. Bc1
{[%clk 0:01:48.9]} 25... a5 {[%clk 0:02:18.2]} 26. Ke2 {[%clk 0:01:46.1]} 26...
Kd6 {[%clk 0:02:17.4]} 27. Kd3 {[%clk 0:01:45.1]} 27... Kd5 {[%clk 0:02:17.7]}
28. Kc2 {[%clk 0:01:44.8]} 28... g6 {[%clk 0:02:04.1]} 29. Kb3 {[%clk 0:01:45]}
29... Nb6 {[%clk 0:02:02.1]} 30. Bb2 {[%clk 0:01:41.7]} 30... Rc4 {[%clk
0:02:00.4]} 31. Re1 {[%clk 0:01:39.5]} 31... f6 {[%clk 0:01:54.7]} 32. g4 {[%clk
0:01:39.4]} 32... Na4 {[%clk 0:01:51.7]} 33. g5 {[%clk 0:01:35.5]} 33... Nxb2
{[%clk 0:01:43]} 34. Kxb2 {[%clk 0:01:27.2]} 34... b4 {[%clk 0:01:42.5]} 35.
gxf6 {[%clk 0:01:04.4]} 35... bxc3+ {[%clk 0:01:41.6]} 36. Kc2 {[%clk
0:01:03.4]} 36... Rxd4 {[%clk 0:01:40.9]} 37. Rd1 {[%clk 0:00:58]} 37... Rxd1
{[%clk 0:01:28]} 38. Kxd1 {[%clk 0:00:58.9]} 38... Kd6 {[%clk 0:01:28]} 39. Kc2
{[%clk 0:00:57.7]} 39... g5 {[%clk 0:01:21.5]} 40. Kxc3 {[%clk 0:00:57.4]} 40...
e5 {[%clk 0:01:21.9]} 41. Kc4 {[%clk 0:00:56.2]} 41... Ke6 {[%clk 0:01:19]} 42.
Kb5 {[%clk 0:00:47.5]} 42... Kxf6 {[%clk 0:01:15]} 43. Kxa5 {[%clk 0:00:47.4]}
43... h5 {[%clk 0:01:01.1]} 44. Kb5 {[%clk 0:00:41.7]} 44... g4 {[%clk
0:00:50.6]} 45. fxg4 {[%clk 0:00:41]} 45... hxg4 {[%clk 0:00:50.1]} 46. a4
{[%clk 0:00:41.1]} 46... Ke6 {[%clk 0:00:46.7]} 47. Kc5 {[%clk 0:00:39]} 47...
Kd7 {[%clk 0:00:37.1]} 48. Kd5 {[%clk 0:00:38.5]} 48... Kc7 {[%clk 0:00:37.4]}
49. Kxe5 {[%clk 0:00:38.7]} 49... Kb6 {[%clk 0:00:38]} 50. Kf4 {[%clk
0:00:39.2]} 50... Ka5 {[%clk 0:00:38.9]} 51. Kxg4 {[%clk 0:00:39.7]} 51... Kxa4
{[%clk 0:00:39.8]} 52. h4 {[%clk 0:00:40]} 52... Kb5 {[%clk 0:00:40.7]} 53. h5
{[%clk 0:00:40.9]} 53... Kc6 {[%clk 0:00:41.2]} 54. h6 {[%clk 0:00:41.8]} 54...
Kd7 {[%clk 0:00:42]} 55. h7 {[%clk 0:00:42.6]} 1-0

[Event "*** Titled Tuesday Blitz"]
[Site "Chess.com"]
[Date "2020.12.29"]
[Round "3"]
[White "Fh2411"]
[Black "stasiek18"]
[Result "1-0"]
[WhiteElo "2572"]
[BlackElo "2380"]
[TimeControl "180+1"]
[EndTime "10:28:10 PST"]
[Termination "Fh2411 won on time"]

1. d4 {[%clk 0:03:00.9]} 1... Nf6 {[%clk 0:02:59.5]} 2. Nf3 {[%clk 0:02:50.2]}
2... g6 {[%clk 0:02:59.1]} 3. g3 {[%clk 0:02:49.6]} 3... Bg7 {[%clk 0:02:59.2]}
4. Bg2 {[%clk 0:02:50]} 4... O-O {[%clk 0:02:59.6]} 5. O-O {[%clk 0:02:50.5]}
5... d5 {[%clk 0:03:00.2]} 6. c4 {[%clk 0:02:48.3]} 6... dxc4 {[%clk 0:03:01.1]}
7. Na3 {[%clk 0:02:47.9]} 7... Nc6 {[%clk 0:03:01.6]} 8. Nxc4 {[%clk 0:02:46.7]}
8... Be6 {[%clk 0:03:02.2]} 9. b3 {[%clk 0:02:47]} 9... Bd5 {[%clk 0:03:01.9]}
10. Bb2 {[%clk 0:02:45.5]} 10... a5 {[%clk 0:03:01.8]} 11. a4 {[%clk 0:02:45.1]}
11... Re8 {[%clk 0:02:57.7]} 12. e3 {[%clk 0:02:40.1]} 12... Qb8 {[%clk
0:02:55.1]} 13. Rc1 {[%clk 0:02:20.7]} 13... e6 {[%clk 0:02:28.3]} 14. Nfe5
{[%clk 0:01:55.1]} 14... Bxg2 {[%clk 0:02:24.7]} 15. Kxg2 {[%clk 0:01:54.6]}
15... Nxe5 {[%clk 0:02:15.1]} 16. Nxe5 {[%clk 0:01:52.4]} 16... Rd8 {[%clk
0:02:07.8]} 17. Qf3 {[%clk 0:01:51]} 17... Ra6 {[%clk 0:01:55.9]} 18. g4 {[%clk
0:01:22.7]} 18... g5 {[%clk 0:01:25]} 19. h4 {[%clk 0:01:19.8]} 19... h6 {[%clk
0:01:24.1]} 20. hxg5 {[%clk 0:01:19.3]} 20... hxg5 {[%clk 0:01:25]} 21. Ba3
{[%clk 0:01:19.3]} 21... Re8 {[%clk 0:00:47.8]} 22. Rh1 {[%clk 0:01:18.6]} 22...
Rb6 {[%clk 0:00:34.4]} 23. Rh5 {[%clk 0:01:12.6]} 23... Rxb3 {[%clk 0:00:28.1]}
24. Rxg5 {[%clk 0:01:10.8]} 24... Qd8 {[%clk 0:00:27.2]} 25. Rxg7+ {[%clk
0:00:44.7]} 25... Kxg7 {[%clk 0:00:27]} 26. g5 {[%clk 0:00:45]} 26... Qd5 {[%clk
0:00:12.5]} 27. gxf6+ {[%clk 0:00:43.5]} 27... Kg8 {[%clk 0:00:12.7]} 28. Be7
{[%clk 0:00:41.4]} 28... Qxf3+ {[%clk 0:00:11.3]} 29. Kxf3 {[%clk 0:00:42.3]}
29... c6 {[%clk 0:00:10.4]} 30. Rg1+ {[%clk 0:00:39.7]} 30... Kh7 {[%clk
0:00:04.4]} 31. Rg7+ {[%clk 0:00:37.7]} 31... Kh6 {[%clk 0:00:04.9]} 32. Nxf7+
{[%clk 0:00:37.7]} 32... Kh5 {[%clk 0:00:04.5]} 33. Ne5 {[%clk 0:00:34.6]} 33...
Rh8 {[%clk 0:00:02.4]} 34. f7 {[%clk 0:00:33.6]} 34... b5 {[%clk 0:00:01.5]} 35.
Rg8 {[%clk 0:00:32.3]} 1-0

[Event "*** Titled Tuesday Blitz"]
[Site "Chess.com"]
[Date "2020.12.29"]
[Round "3"]
[White "Siniauski"]
[Black "Eternauta2400"]
[Result "0-1"]
[WhiteElo "2591"]
[BlackElo "2435"]
[TimeControl "180+1"]
[EndTime "10:28:11 PST"]
[Termination "Eternauta2400 won on time"]

1. e4 {[%clk 0:03:00.9]} 1... e5 {[%clk 0:02:59.7]} 2. Nf3 {[%clk 0:03:01.3]}
2... Nc6 {[%clk 0:02:58.5]} 3. Bb5 {[%clk 0:03:01.7]} 3... a6 {[%clk 0:02:58.7]}
4. Ba4 {[%clk 0:03:01.5]} 4... Nf6 {[%clk 0:02:59.1]} 5. O-O {[%clk 0:03:01.6]}
5... Bc5 {[%clk 0:02:59.6]} 6. c3 {[%clk 0:02:58.3]} 6... b5 {[%clk 0:02:58.5]}
7. Bc2 {[%clk 0:02:58]} 7... d6 {[%clk 0:02:56.4]} 8. h3 {[%clk 0:02:56.9]} 8...
Bb7 {[%clk 0:02:53]} 9. d4 {[%clk 0:02:55.6]} 9... Ba7 {[%clk 0:02:51]} 10. a4
{[%clk 0:02:51.3]} 10... O-O {[%clk 0:02:49.2]} 11. d5 {[%clk 0:02:47.8]} 11...
Ne7 {[%clk 0:02:45.1]} 12. Qe2 {[%clk 0:02:45.7]} 12... c6 {[%clk 0:02:42.3]}
13. dxc6 {[%clk 0:02:41.2]} 13... Bxc6 {[%clk 0:02:41]} 14. Rd1 {[%clk
0:02:37.6]} 14... Ng6 {[%clk 0:02:36.3]} 15. Be3 {[%clk 0:02:12.3]} 15... Bxe3
{[%clk 0:02:31.7]} 16. Qxe3 {[%clk 0:02:13.2]} 16... Qc7 {[%clk 0:02:32.1]} 17.
axb5 {[%clk 0:02:09.6]} 17... axb5 {[%clk 0:02:30.7]} 18. Rxa8 {[%clk
0:02:09.5]} 18... Rxa8 {[%clk 0:02:29.9]} 19. Na3 {[%clk 0:02:09.3]} 19... Rb8
{[%clk 0:02:21.3]} 20. b4 {[%clk 0:02:04.6]} 20... h6 {[%clk 0:02:15.8]} 21. Nd2
{[%clk 0:01:54.6]} 21... Nf4 {[%clk 0:02:12.3]} 22. Nf1 {[%clk 0:01:44]} 22...
Ra8 {[%clk 0:02:04.9]} 23. Nb1 {[%clk 0:01:43.4]} 23... Ra2 {[%clk 0:01:58.9]}
24. Rd2 {[%clk 0:01:21.9]} 24... Rxc2 {[%clk 0:01:40.5]} 25. Rxc2 {[%clk
0:01:19.9]} 25... Bxe4 {[%clk 0:01:41.1]} 26. Rc1 {[%clk 0:01:16]} 26... Nxg2
{[%clk 0:01:26.8]} 27. Qg3 {[%clk 0:00:54.9]} 27... Nf4 {[%clk 0:01:26.4]} 28.
Qe3 {[%clk 0:00:24.2]} 28... Qd7 {[%clk 0:01:10]} 29. Kh2 {[%clk 0:00:12.3]}
29... Qf5 {[%clk 0:00:51.4]} 30. Nbd2 {[%clk 0:00:10.9]} 30... Bc6 {[%clk
0:00:48.9]} 31. c4 {[%clk 0:00:07]} 31... bxc4 {[%clk 0:00:43.9]} 32. Rxc4
{[%clk 0:00:06.4]} 32... Bd5 {[%clk 0:00:44.2]} 33. Rc3 {[%clk 0:00:03.5]} 33...
Be6 {[%clk 0:00:40.6]} 34. b5 {[%clk 0:00:02.8]} 34... N4d5 {[%clk 0:00:40.1]}
35. Qf3 {[%clk 0:00:02.5]} 35... Nxc3 {[%clk 0:00:39.5]} 36. Qxc3 {[%clk
0:00:02.5]} 36... Qxf2+ {[%clk 0:00:39.1]} 37. Kh1 {[%clk 0:00:02.4]} 37... Bd5+
{[%clk 0:00:39.2]} 0-1

[Event "*** Titled Tuesday Blitz"]
[Site "Chess.com"]
[Date "2020.12.29"]
[Round "3"]
[White "Artyom_ChessMate"]
[Black "Homino"]
[Result "0-1"]
[WhiteElo "2496"]
[BlackElo "2295"]
[TimeControl "180+1"]
[EndTime "10:28:11 PST"]
[Termination "Homino won by checkmate"]

1. e4 {[%clk 0:03:00.9]} 1... c5 {[%clk 0:02:57.7]} 2. Nc3 {[%clk 0:02:48]} 2...
g6 {[%clk 0:02:56.9]} 3. d4 {[%clk 0:02:47]} 3... cxd4 {[%clk 0:02:56]} 4. Qxd4
{[%clk 0:02:47.9]} 4... Nf6 {[%clk 0:02:54.8]} 5. e5 {[%clk 0:02:46.6]} 5... Nc6
{[%clk 0:02:54]} 6. Qa4 {[%clk 0:02:39]} 6... Nxe5 {[%clk 0:02:48.3]} 7. Bf4
{[%clk 0:02:39.5]} 7... Nc6 {[%clk 0:02:43.1]} 8. h4 {[%clk 0:02:39.6]} 8... h5
{[%clk 0:02:39.7]} 9. Nf3 {[%clk 0:02:39.4]} 9... Bg7 {[%clk 0:02:39.1]} 10. Bc4
{[%clk 0:02:39.1]} 10... O-O {[%clk 0:02:35]} 11. Ng5 {[%clk 0:02:39.1]} 11...
d5 {[%clk 0:02:28.3]} 12. Bb3 {[%clk 0:02:35.3]} 12... e5 {[%clk 0:02:16.4]} 13.
Bd2 {[%clk 0:02:33.9]} 13... Nd4 {[%clk 0:02:05.3]} 14. O-O-O {[%clk 0:02:19.5]}
14... Bd7 {[%clk 0:01:55]} 15. Qa3 {[%clk 0:02:17.2]} 15... Bc6 {[%clk
0:01:46.3]} 16. f3 {[%clk 0:02:07]} 16... Re8 {[%clk 0:01:40.3]} 17. Na4 {[%clk
0:01:45.3]} 17... Bf8 {[%clk 0:01:21.3]} 18. Bb4 {[%clk 0:01:43.4]} 18... Nb5
{[%clk 0:01:18.1]} 19. Bxf8 {[%clk 0:01:40]} 19... Nxa3 {[%clk 0:01:16.1]} 20.
Bxa3 {[%clk 0:01:40.9]} 20... Rc8 {[%clk 0:01:07.6]} 21. Nc5 {[%clk 0:01:35.3]}
21... b6 {[%clk 0:01:00.6]} 22. Nd3 {[%clk 0:01:33.8]} 22... Rc7 {[%clk
0:00:57.3]} 23. Rhe1 {[%clk 0:01:31.1]} 23... a5 {[%clk 0:00:56.5]} 24. Nxe5
{[%clk 0:01:28.6]} 24... Rxe5 {[%clk 0:00:38.7]} 25. Rxe5 {[%clk 0:01:26.5]}
25... a4 {[%clk 0:00:39.2]} 26. Rde1 {[%clk 0:01:01.2]} 26... axb3 {[%clk
0:00:37.3]} 27. axb3 {[%clk 0:01:02.1]} 27... Kg7 {[%clk 0:00:35.5]} 28. Be7
{[%clk 0:00:59.5]} 28... Qc8 {[%clk 0:00:28.9]} 29. g4 {[%clk 0:00:39.1]} 29...
hxg4 {[%clk 0:00:28]} 30. Bxf6+ {[%clk 0:00:35.5]} 30... Kxf6 {[%clk 0:00:26.6]}
31. fxg4 {[%clk 0:00:36.4]} 31... Qxg4 {[%clk 0:00:23.4]} 32. R5e3 {[%clk
0:00:36.3]} 32... Qxh4 {[%clk 0:00:20.3]} 33. Nf3 {[%clk 0:00:34.7]} 33... Qf4
{[%clk 0:00:20]} 34. Kb1 {[%clk 0:00:35.6]} 34... d4 {[%clk 0:00:20]} 35. Rd3
{[%clk 0:00:25.1]} 35... Bxf3 {[%clk 0:00:18.7]} 36. Rf1 {[%clk 0:00:25.5]}
36... Kg7 {[%clk 0:00:18.3]} 37. Rdxf3 {[%clk 0:00:26.4]} 37... Qe4 {[%clk
0:00:18.2]} 38. Rf4 {[%clk 0:00:26.4]} 38... Qxc2+ {[%clk 0:00:17.9]} 39. Ka2
{[%clk 0:00:26.4]} 39... Ra7# {[%clk 0:00:18.8]} 0-1

[Event "*** Titled Tuesday Blitz"]
[Site "Chess.com"]
[Date "2020.12.29"]
[Round "3"]
[White "Xeslu"]
[Black "Stouuf"]
[Result "0-1"]
[WhiteElo "2286"]
[BlackElo "2601"]
[TimeControl "180+1"]
[EndTime "10:28:12 PST"]
[Termination "Stouuf won on time"]

1. e4 {[%clk 0:03:00.9]} 1... c5 {[%clk 0:02:57.6]} 2. Nf3 {[%clk 0:03:00.8]}
2... Nc6 {[%clk 0:02:57.3]} 3. Bb5 {[%clk 0:03:00.2]} 3... e6 {[%clk 0:02:56.8]}
4. O-O {[%clk 0:02:59.2]} 4... Nge7 {[%clk 0:02:56.4]} 5. c3 {[%clk 0:02:58.6]}
5... d5 {[%clk 0:02:55.9]} 6. exd5 {[%clk 0:02:57.1]} 6... Qxd5 {[%clk
0:02:56.8]} 7. Qe2 {[%clk 0:02:47.4]} 7... Bd7 {[%clk 0:02:53.7]} 8. d3 {[%clk
0:02:37.4]} 8... Nf5 {[%clk 0:02:51.2]} 9. Bf4 {[%clk 0:02:34.2]} 9... Nd6
{[%clk 0:02:37.7]} 10. Ba4 {[%clk 0:02:25.7]} 10... Be7 {[%clk 0:02:37.4]} 11.
Nbd2 {[%clk 0:02:15.6]} 11... O-O {[%clk 0:02:33.3]} 12. Bb3 {[%clk 0:02:03.5]}
12... Qh5 {[%clk 0:02:31.3]} 13. h3 {[%clk 0:02:03.5]} 13... Rfd8 {[%clk
0:02:23.6]} 14. Rfe1 {[%clk 0:01:57.1]} 14... Rac8 {[%clk 0:02:21.1]} 15. Nf1
{[%clk 0:01:55.1]} 15... Nf5 {[%clk 0:02:13.2]} 16. g4 {[%clk 0:01:35.6]} 16...
Qg6 {[%clk 0:02:07.4]} 17. Kh2 {[%clk 0:01:35.3]} 17... Bd6 {[%clk 0:02:00.9]}
18. Ne5 {[%clk 0:01:25]} 18... Bxe5 {[%clk 0:01:14.8]} 19. Bxe5 {[%clk
0:01:24.3]} 19... Nfe7 {[%clk 0:01:02]} 20. Bg3 {[%clk 0:01:22]} 20... Be8
{[%clk 0:00:50.1]} 21. Bc2 {[%clk 0:01:20.6]} 21... Qf6 {[%clk 0:00:47.4]} 22.
Nd2 {[%clk 0:01:13.6]} 22... Ng6 {[%clk 0:00:44]} 23. Ne4 {[%clk 0:01:13.3]}
23... Qe7 {[%clk 0:00:44.6]} 24. Rad1 {[%clk 0:01:03.3]} 24... e5 {[%clk
0:00:44.2]} 25. Qe3 {[%clk 0:00:40.7]} 25... b6 {[%clk 0:00:44.2]} 26. Bb3
{[%clk 0:00:41.2]} 26... h6 {[%clk 0:00:42.5]} 27. Nd2 {[%clk 0:00:35.3]} 27...
Kh8 {[%clk 0:00:38]} 28. Nc4 {[%clk 0:00:34.7]} 28... f6 {[%clk 0:00:36.3]} 29.
Qe4 {[%clk 0:00:33.8]} 29... Qd7 {[%clk 0:00:33.3]} 30. Ne3 {[%clk 0:00:31.5]}
30... Nce7 {[%clk 0:00:33.2]} 31. Nc2 {[%clk 0:00:20.4]} 31... Qc6 {[%clk
0:00:32.8]} 32. d4 {[%clk 0:00:18.8]} 32... Qxe4 {[%clk 0:00:29.9]} 33. Rxe4
{[%clk 0:00:18.9]} 33... c4 {[%clk 0:00:28.7]} 0-1

[Event "*** Titled Tuesday Blitz"]
[Site "Chess.com"]
[Date "2020.12.29"]
[Round "3"]
[White "Zhigalko_Sergei"]
[Black "realmadridtv"]
[Result "1-0"]
[WhiteElo "2850"]
[BlackElo "2453"]
[TimeControl "180+1"]
[EndTime "10:28:14 PST"]
[Termination "Zhigalko_Sergei won by resignation"]

1. e4 {[%clk 0:03:00.9]} 1... e5 {[%clk 0:03:00]} 2. Nf3 {[%clk 0:03:00.4]} 2...
Nc6 {[%clk 0:03:00.5]} 3. Bc4 {[%clk 0:02:59.6]} 3... Bc5 {[%clk 0:02:59.7]} 4.
b4 {[%clk 0:02:59.7]} 4... Bb6 {[%clk 0:02:57.5]} 5. a4 {[%clk 0:02:59.6]} 5...
a6 {[%clk 0:02:55.6]} 6. Nc3 {[%clk 0:02:59.1]} 6... Nf6 {[%clk 0:02:52.3]} 7.
Nd5 {[%clk 0:02:48.8]} 7... Nxd5 {[%clk 0:02:46.4]} 8. exd5 {[%clk 0:02:44.6]}
8... Ne7 {[%clk 0:02:40.4]} 9. a5 {[%clk 0:02:30.9]} 9... Ba7 {[%clk 0:02:39.3]}
10. Nxe5 {[%clk 0:02:17.3]} 10... Bd4 {[%clk 0:02:32.4]} 11. Nxf7 {[%clk
0:02:16.2]} 11... Kxf7 {[%clk 0:02:32]} 12. d6+ {[%clk 0:02:15.9]} 12... Ke8
{[%clk 0:02:01.3]} 13. c3 {[%clk 0:01:52.5]} 13... Bf6 {[%clk 0:01:33.3]} 14.
dxe7 {[%clk 0:01:38.2]} 14... Qxe7+ {[%clk 0:01:32.8]} 15. Be2 {[%clk 0:01:33]}
15... d5 {[%clk 0:01:32]} 16. O-O {[%clk 0:01:31.9]} 16... d4 {[%clk 0:01:26.5]}
17. Re1 {[%clk 0:01:27.6]} 17... Kd8 {[%clk 0:01:20.1]} 18. Bxa6 {[%clk
0:01:08.6]} 18... Qxe1+ {[%clk 0:01:07.1]} 19. Qxe1 {[%clk 0:01:07.9]} 19...
Rxa6 {[%clk 0:01:07.8]} 20. Qf1 {[%clk 0:00:55.4]} 20... Re8 {[%clk 0:01:00.9]}
21. Bb2 {[%clk 0:00:51.2]} 21... Rae6 {[%clk 0:00:48.6]} 22. cxd4 {[%clk
0:00:45.2]} 22... R6e7 {[%clk 0:00:49]} 23. b5 {[%clk 0:00:41.3]} 23... Bd7
{[%clk 0:00:32.2]} 24. h3 {[%clk 0:00:37.8]} 24... Kc8 {[%clk 0:00:27.7]} 25. a6
{[%clk 0:00:36.8]} 25... b6 {[%clk 0:00:26.2]} 26. Qc4 {[%clk 0:00:26.8]} 26...
Re1+ {[%clk 0:00:20.3]} 27. Rxe1 {[%clk 0:00:23.9]} 27... Rxe1+ {[%clk
0:00:21.2]} 28. Kh2 {[%clk 0:00:24.4]} 28... Re6 {[%clk 0:00:20.9]} 29. Qd5
{[%clk 0:00:19.3]} 29... c6 {[%clk 0:00:11.5]} 30. bxc6 {[%clk 0:00:18.9]} 30...
Rxc6 {[%clk 0:00:11.4]} 31. a7 {[%clk 0:00:17.5]} 31... Kb7 {[%clk 0:00:10.7]}
32. Qxd7+ {[%clk 0:00:17.1]} 32... Rc7 {[%clk 0:00:11.3]} 33. Qxc7+ {[%clk
0:00:16.9]} 1-0

[Event "*** Titled Tuesday Blitz"]
[Site "Chess.com"]
[Date "2020.12.29"]
[Round "3"]
[White "Lagmantr"]
[Black "KyronGriffith"]
[Result "1-0"]
[WhiteElo "2790"]
[BlackElo "2557"]
[TimeControl "180+1"]
[EndTime "10:28:17 PST"]
[Termination "Lagmantr won by checkmate"]

1. e4 {[%clk 0:03:00.9]} 1... c5 {[%clk 0:02:56.4]} 2. Nf3 {[%clk 0:03:01.1]}
2... d6 {[%clk 0:02:56.5]} 3. d4 {[%clk 0:03:01.7]} 3... cxd4 {[%clk 0:02:57.4]}
4. Nxd4 {[%clk 0:03:02.3]} 4... Nf6 {[%clk 0:02:57.8]} 5. Nc3 {[%clk 0:03:03]}
5... a6 {[%clk 0:02:58.1]} 6. Be3 {[%clk 0:03:03.6]} 6... e6 {[%clk 0:02:57.6]}
7. g4 {[%clk 0:03:02.6]} 7... e5 {[%clk 0:02:56.2]} 8. Nf5 {[%clk 0:03:02.8]}
8... g6 {[%clk 0:02:53.8]} 9. g5 {[%clk 0:03:01.6]} 9... gxf5 {[%clk 0:02:52.6]}
10. exf5 {[%clk 0:03:02.1]} 10... d5 {[%clk 0:02:48.5]} 11. gxf6 {[%clk
0:02:44.9]} 11... d4 {[%clk 0:02:46.7]} 12. Bc4 {[%clk 0:02:30.4]} 12... Bxf5
{[%clk 0:02:33.5]} 13. Qf3 {[%clk 0:02:28.3]} 13... Qc8 {[%clk 0:02:27.1]} 14.
O-O-O {[%clk 0:00:58]} 14... dxc3 {[%clk 0:01:46.9]} 15. Bb3 {[%clk 0:00:49.3]}
15... cxb2+ {[%clk 0:01:37.6]} 16. Kb1 {[%clk 0:00:49.7]} 16... Nc6 {[%clk
0:01:20.8]} 17. Bb6 {[%clk 0:00:49.3]} 17... Bg4 {[%clk 0:00:53.7]} 18. Qe4
{[%clk 0:00:35.9]} 18... Qf5 {[%clk 0:00:41.6]} 19. Qc4 {[%clk 0:00:28.8]} 19...
Bh5 {[%clk 0:00:25.1]} 20. f4 {[%clk 0:00:21.2]} 20... Qxf6 {[%clk 0:00:20.5]}
21. fxe5 {[%clk 0:00:21.5]} 21... Qe7 {[%clk 0:00:20.8]} 22. e6 {[%clk
0:00:20.3]} 22... f6 {[%clk 0:00:20.6]} 23. Rd7 {[%clk 0:00:18.7]} 23... Qb4
{[%clk 0:00:20.6]} 24. Rxb7 {[%clk 0:00:10.2]} 24... Qxc4 {[%clk 0:00:19.9]} 25.
Bxc4 {[%clk 0:00:11.1]} 25... Bf3 {[%clk 0:00:19.3]} 26. Rf1 {[%clk 0:00:10.4]}
26... Ne5 {[%clk 0:00:19.5]} 27. Rc7 {[%clk 0:00:08.9]} 27... Nxc4 {[%clk
0:00:18.6]} 28. Rxc4 {[%clk 0:00:07.2]} 28... Bd5 {[%clk 0:00:18.7]} 29. Rc7
{[%clk 0:00:07.4]} 29... Bd6 {[%clk 0:00:18.1]} 30. Rd7 {[%clk 0:00:06.8]} 30...
Bc4 {[%clk 0:00:18.1]} 31. Rxf6 {[%clk 0:00:05.6]} 31... Be5 {[%clk 0:00:17.2]}
32. Rff7 {[%clk 0:00:05.5]} 32... Rg8 {[%clk 0:00:14.4]} 33. Rde7# {[%clk
0:00:05.5]} 1-0